Workbook

Sheet Budget Worksheet
B2: 2019-20 Faculty-Led Program Budget Form
B4: PROGRAM DETAILS
B5: Academic Program Director (APD):
B6: Program location (Pick from Dropdown Menu):
B7: Number of Program Providers:
B8: Name of Provider 1:
B9: Name of Provider 2:
B10: Name of Provider 3:
B11: Name of Provider 4:
B12: Name of Provider 5:
B13: Currency used by provider (Pick from Dropdown Menu):
B14: Exchange Factor (data provided for you to calculate fees) | E14: =SUMIFS('Exchange Factor List'!$C2:$C30,'Exchange Factor List'!$A2:$A30,'Budget Worksheet'!E13) -> 0
B15: Daily per diem rate used (Max=50% State Department Rate): | E15: =SUMIFS('Country Per Diem List'!$B2:$B32,'Country Per Diem List'!$A2:$A32,'Budget Worksheet'!E6) -> 0
B16: Date Program Departs the United States:
B17: Date Program Returns to the United States:
B18: Trip Length (in days) | E18: =(E17-E16)+1 -> 1
B19: Minimum Number of Students
B20: Number of faculty:
B21: Number of assistants:
B22: Total Number of Participants | E22: =SUM(E19:G21) -> 0
B23: Submission Date:
B27: STUDENT/GROUP TRAVEL EXPENSES
B28: Category | D28: Group cost | E28: Cost per student | F28: Comments | G28: Name of Provider
B30: Program provider fee in USD (If itemized, enter zero and detail below) | D30: 0 | E30: =SUM($D30/$E$19) -> 
B31: a) Lodging | D31: 0 | E31: =SUM($D31/$E$19) -> 
B32: b.) Meals | D32: 0
B33: c) Transportation | D33: 0
B34: d) Excursions | D34: 0
B35: e) Other (If itemized, enter zero and detail below) | D35: 0
B36: a) | D36: 0
B37: b) | D37: 0
B38: d) | D38: 0
B39: e) | D39: 0
B40: f) | D40: 0
B41: g) | D41: 0
B42: h) | D42: 0
B43: TOTAL PROGRAM EXPENSES | D43: =SUM(D30:D42) -> 0 | E43: =SUM(E30:E42) -> 
B44: FACULTY TRAVEL EXPENSES
B45: Category | C45: Cost per faculty member | D45: TOTAL COST FACULTY TRAVEL | E45: Cost per student | F45: Comments
B47: Airfare to/from program site | C47: 0 | D47: =SUM($C47*$E$20) -> 0 | E47: =SUM($D47/$E$19) -> 
B48: Lodging at main location | C48: 0 | D48: =SUM($C48*$E$20) -> 0 | E48: =SUM($D48/$E$19) -> 
B49: Lodging during excursions | C49: 0 | D49: 0
B50: Per diem (meals and incidentals) | C50: =SUM($E$15*$E$18) -> 0 | D50: 0
B51: Transportation | C51: 0 | D51: 0
B52: Texas State insurance | C52: =IF(E18<=10,54,IF(AND(E18>10,E18<=17),68,IF(AND(E18>17,E18<=24),82,IF(AND(E18>24,E18<=31),96,IF(AND(E18>31,E18<=38),110,IF(AND(E18>38,E18<=45),124)))))) -> 54 | D52: 0
B53: Cost Reductions | C53: 0 | D53: =SUM($C53*$E$20)*-1 -> 0
B54: Other (If itemized, enter zero and detail below) | C54: 0 | D54: 0
B55: a) | C55: 0 | D55: 0
B56: b) | C56: 0 | D56: 0
B57: c) | C57: 0 | D57: 0
B58: d) | C58: 0 | D58: 0
B59: e) | C59: 0 | D59: 0
B60: TOTAL FACULTY TRAVEL EXPENSES | C60: =C47+C48+C49+C50+C51+C52-C53+C54+C55+C56+C57+C58+C59 -> 54 | D60: =SUM(D47:D59) -> 0 | E60: =SUM(E47:E59) -> 
B61: PROGRAM ASSISTANT TRAVEL EXPENSES
B62: Category | C62: Cost per assistant | D62: TOTAL COST ASSISTANT TRAVEL | E62: Cost per student | F62: Comments
B64: Airfare to/from program site | C64: 0 | D64: =SUM($C64*$E$21) -> 0 | E64: =SUM($D64/$E$19) -> 
B65: Lodging at main location | C65: 0 | D65: =SUM($C65*$E$21) -> 0 | E65: =SUM($D65/$E$19) -> 
B66: Lodging during excursions | C66: 0 | D66: 0
B67: Per diem (meals and incidentals) | C67: =SUM($E$15*$E$18) -> 0 | D67: 0
B68: Transportation | C68: 0 | D68: 0
B69: Texas State insurance | C69: =IF(E18<=10,54,IF(AND(E18>10,E18<=17),68,IF(AND(E18>17,E18<=24),82,IF(AND(E18>24,E18<=31),96,IF(AND(E18>31,E18<=38),110,IF(AND(E18>38,E18<=45),124)))))) -> 54 | D69: 0
B70: Other (If itemized, enter zero and detail below) | C70: 0 | D70: 0
B71: a) | C71: 0 | D71: 0
B72: b) | C72: 0 | D72: 0
B73: c) | C73: 0 | D73: 0
B74: d) | C74: 0 | D74: 0
B75: e) | C75: 0 | D75: 0
B76: TOTAL ASSISTANT TRAVEL EXPENSES | C76: =SUM(C64:C75) -> 54 | D76: =SUM(D64:D75) -> 0 | E76: =SUM(E64:E75) -> 
B77: OPERATING EXPENSES
B78: Category | D78: Group cost | E78: Cost per student | F78: Comments
B80: Program assistant stipends | D80: 0 | E80: =SUM($D80/$E$19) -> 
B81: Pre-departure meetings | D81: 0
B82: Printing costs | D82: 0
B83: Courier services | D83: 0
B84: Other (If itemized, enter zero and detail below) | D84: 0
B85: a) | D85: 0
B86: b) | D86: 0
B87: c) | D87: 0
B88: d) | D88: 0
B89: TOTAL OPERATING AND OTHER EXPENSES | D89: =SUM(D80:D88) -> 0 | E89: =SUM(E80:E88) -> 
B90: FACULTY PROGRAM NOTES
B92: EDUCATION ABROAD OFFICE USE ONLY
B94: STUDENT TRAVEL EXPENSES (NOT INCLUDED IN PROGRAM FEE)
B95: Category | E95: Cost per student | F95: Comments
B97: Airfare to/from program site | E97: 0
B98: Airfare (in-country) | E98: 0
B99: Local transportation (If itemized, enter zero and detail below) | E99: 0
B100: a) | E100: 0
B101: b) | E101: 0
B102: c) | E102: 0
B103: d) | E103: 0
B104: Lodging | E104: 0
B105: Meals | E105: 0
B106: Books and supplies | E106: 0
B107: Other: (If itemized, enter zero and detail below) | E107: 0
B108: a) | E108: 0
B109: b) | E109: 0
B110: c) | E110: 0
B111: d) | E111: 0
B112: e) | E112: 0
B113: TOTAL STUDENT TRAVEL EXPENSES | E113: =SUM(E97:E112) -> 0
B114: TEXAS STATE TUITION AND FEES
B115: Category | E115: Cost per student
B117: Undergraduate Texas State tuition ($288 per credit hour) | E117: 1728
B118: Graduate Texas State tuition ($338 per credit hour) | E118: 2028
B119: Education abroad application fee | E119: 200
B120: Texas State insurance | E120: =IF(E18<=10,29,IF(AND(E18>10,E18<=17),40,IF(AND(E18>17,E18<=24),51,IF(AND(E18>24,E18<=31),62,IF(AND(E18>31,E18<=38),73,IF(AND(E18>38,E18<=45),84)))))) -> 29
B121: TOTAL TEXAS STATE UNDERGRADUATE TUITION AND FEES | E121: =SUM(E117,E119,E120) -> 1957
B122: TOTAL TEXAS STATE GRADUATE TUITION AND FEES | E122: =SUM(E118,E119,E120) -> 2257
B124: TOTAL TEXAS STATE PROGRAM FEE | E124: =SUM(E43,E60,E76,E89) -> 
B126: TOTAL COST TO UNDERGRADUATE STUDENT BILLED BY TEXAS STATE | E126: =SUM(E43,E60,E76,E89,E121) -> 
B127: TOTAL COST TO GRADUATE STUDENT BILLED BY TEXAS STATE | E127: =SUM(E43,E60,E76,E89,E122) -> 
B129: TOTAL COST TO UNDERGRADUATE STUDENT | E129: =SUM(E113,E126) -> 
B130: TOTAL COST TO GRADUATE STUDENT | E130: =SUM(E113,E127) -> 
B131: COST OF ATTENDANCE CALCULATION
B132: Category | E132: Cost per student
B134: Undergraduate tuition and fees | E134: =SUM(E126) -> 
B135: Graduate tuition and fees | E135: =SUM(E127) -> 
B136: Room and board | E136: =SUM(E104,E105) -> 0
B137: Transportation | E137: =SUM(E97,E98,E99,E100,E101,E102,E103) -> 0
B138: Books and supplies | E138: =SUM(E106) -> 0
B139: Personal and miscellaneous | E139: =SUM(E107,E108,E109,E110,E111,E112) -> 0
B140: TOTAL UNDERGRADUATE COST OF ATTENDANCE | E140: =SUM(E134,E136,E137,E138,E139) -> 
B141: TOTAL GRADUATE COST OF ATTENDANCE | E141: =SUM(E135,E136,E137,E138,E139) -> 
B142: EDUCATION ABROAD OFFICE PROGRAM NOTES
B157: Revised Date:
B158: Initials:
B159: For any questions, please contact Casey Poe at 512.245.1967

Sheet Country Per Diem List
A1: Country | B1: Average of TXST Max Per Diem (50%)
A2: ARGENTINA | B2: 57.875
A3: AUSTRIA | B3: 67.6666667
A4: BELIZE | B4: 47.3
A5: CAMBODIA | B5: 37.5833333
A6: CHINA | B6: 54.7741935
A7: COSTA RICA | B7: 61
A8: CUBA | B8: 30.9375
A9: Czech Republic | B9: 51.8333333
A10: DOMINICAN REPUBLIC | B10: 34.2857143
A11: ECUADOR | B11: 51.5
A12: ESTONIA | B12: 56.1666667
A13: FINLAND | B13: 64.5
A14: FRANCE | B14: 69.7083333
A15: GERMANY | B15: 59.2297297
A16: GHANA | B16: 45.75
A17: GREECE | B17: 48
A18: HONG KONG | B18: 90
A19: INDIA | B19: 53.0909091
A20: IRELAND | B20: 53.5
A21: ITALY | B21: 59.1774194
A22: JAPAN | B22: 58.8076923
A23: Korea, South | B23: 41.9772727
A24: MEXICO | B24: 38.9390244
A25: MOROCCO | B25: 40.0625
A26: NETHERLANDS | B26: 60.2307692
A27: PANAMA | B27: 40.625
A28: PERU | B28: 47
A29: PORTUGAL | B29: 39
A30: SOUTH AFRICA | B30: 40.5714286
A31: SPAIN | B31: 48.875
A32: UNITED KINGDOM | B32: 55.2708333

Sheet Post Per Diem List
A1: Country Name | B1: Post Name | C1: Season Begin | D1: Season End | E1: M & IE Rate | F1: TXST Max M & IE Rate (50%) | G1: Effective Date
A2: AFGHANISTAN | B2: Kabul | C2: 2019-01-01 | D2: 2019-12-31 | E2: 33 | F2: =E2*0.5 -> 16.5 | G2: 2016-07-01
A3: AFGHANISTAN | B3: Other | C3: 2019-01-01 | D3: 2019-12-31 | E3: 15 | F3: =E3*0.5 -> 7.5 | G3: 2003-08-01
A4: ALBANIA | B4: Other | C4: 2019-01-01 | D4: 2019-12-31 | E4: 73 | F4: 36.5 | G4: 2019-06-01
A5: ALBANIA | B5: Tirana | C5: 2019-01-01 | D5: 2019-12-31 | E5: 86 | F5: 43 | G5: 2018-12-01
A6: ALGERIA | B6: Algiers | C6: 2019-01-01 | D6: 2019-12-31 | E6: 72 | F6: 36 | G6: 2018-09-01
A7: ALGERIA | B7: Other | C7: 2019-01-01 | D7: 2019-12-31 | E7: 112 | F7: 56 | G7: 2015-01-01
A8: ANDORRA | B8: Andorra | C8: 2019-01-01 | D8: 2019-12-31 | E8: 123 | F8: 61.5 | G8: 2008-01-01
A9: ANGOLA | B9: Luanda | C9: 2019-01-01 | D9: 2019-12-31 | E9: 170 | F9: 85 | G9: 2013-08-01
A10: ANGOLA | B10: Other | C10: 2019-01-01 | D10: 2019-12-31 | E10: 170 | F10: 85 | G10: 2013-08-01
A11: ANGUILLA | B11: The Valley | C11: 2019-01-01 | D11: 2019-12-31 | E11: 161 | F11: 80.5 | G11: 2016-10-01
A12: ANTARCTICA | B12: Antarctica Region Posts | C12: 2019-01-01 | D12: 2019-12-31 | E12: 1 | F12: 0.5 | G12: 2010-06-01
A13: ANTIGUA AND BARBUDA | B13: Antigua and Barbuda | C13: 2019-05-01 | D13: 2019-11-30 | E13: 115 | F13: 57.5 | G13: 2016-05-01
A14: ANTIGUA AND BARBUDA | B14: Antigua and Barbuda | C14: 2019-12-01 | D14: 2019-04-30 | E14: 120 | F14: 60 | G14: 2016-05-01
A15: ANTIGUA AND BARBUDA | B15: Other | C15: 2019-04-16 | D15: 2019-12-14 | E15: 18 | F15: 9 | G15: 2008-05-01
A16: ANTIGUA AND BARBUDA | B16: Other | C16: 2019-12-15 | D16: 2019-04-15 | E16: 19 | F16: 9.5 | G16: 2008-05-01
A17: ARGENTINA | B17: Bariloche | C17: 2019-01-01 | D17: 2019-12-31 | E17: 112 | F17: 56 | G17: 2012-03-01
A18: ARGENTINA | B18: Buenos Aires | C18: 2019-01-01 | D18: 2019-12-31 | E18: 129 | F18: 64.5 | G18: 2017-01-01
A19: ARGENTINA | B19: Mendoza | C19: 2019-01-01 | D19: 2019-12-31 | E19: 105 | F19: 52.5 | G19: 2012-05-01
A20: ARGENTINA | B20: Other | C20: 2019-01-01 | D20: 2019-12-31 | E20: 117 | F20: 58.5 | G20: 2012-05-01
A21: ARMENIA | B21: Other | C21: 2019-01-01 | D21: 2019-12-31 | E21: 92 | F21: 46 | G21: 2012-05-01
A22: ARMENIA | B22: Yerevan | C22: 2019-01-01 | D22: 2019-12-31 | E22: 92 | F22: 46 | G22: 2012-05-01
A23: ASCENSION ISLAND | B23: Ascension Island | C23: 2019-01-01 | D23: 2019-12-31 | E23: 29 | F23: 14.5 | G23: 2016-11-01
A24: AUSTRALIA | B24: Adelaide | C24: 2019-01-01 | D24: 2019-12-31 | E24: 120 | F24: 60 | G24: 2019-06-01
A25: AUSTRALIA | B25: Bendigo | C25: 2019-01-01 | D25: 2019-12-31 | E25: 120 | F25: 60 | G25: 2019-06-01
A26: AUSTRALIA | B26: Brisbane | C26: 2019-01-01 | D26: 2019-12-31 | E26: 97 | F26: 48.5 | G26: 2019-06-01
A27: AUSTRALIA | B27: Broome | C27: 2019-01-01 | D27: 2019-12-31 | E27: 125 | F27: 62.5 | G27: 2019-06-01
A28: AUSTRALIA | B28: Cairns | C28: 2019-01-01 | D28: 2019-12-31 | E28: 100 | F28: 50 | G28: 2019-06-01
A29: AUSTRALIA | B29: Canberra | C29: 2019-01-01 | D29: 2019-12-31 | E29: 121 | F29: 60.5 | G29: 2019-06-01
A30: AUSTRALIA | B30: Darwin, Northern Territory | C30: 2019-01-01 | D30: 2019-12-31 | E30: 121 | F30: 60.5 | G30: 2019-06-01
A31: AUSTRALIA | B31: Exmouth | C31: 2019-01-01 | D31: 2019-12-31 | E31: 112 | F31: 56 | G31: 2019-06-01
A32: AUSTRALIA | B32: Fremantle | C32: 2019-01-01 | D32: 2019-12-31 | E32: 103 | F32: 51.5 | G32: 2019-06-01
A33: AUSTRALIA | B33: Hobart | C33: 2019-01-01 | D33: 2019-12-31 | E33: 129 | F33: 64.5 | G33: 2019-06-01
A34: AUSTRALIA | B34: Melbourne | C34: 2019-01-01 | D34: 2019-12-31 | E34: 140 | F34: 70 | G34: 2019-06-01
A35: AUSTRALIA | B35: Other | C35: 2019-01-01 | D35: 2019-12-31 | E35: 100 | F35: 50 | G35: 2019-06-01
A36: AUSTRALIA | B36: Perth | C36: 2019-01-01 | D36: 2019-12-31 | E36: 132 | F36: 66 | G36: 2019-06-01
A37: AUSTRALIA | B37: Richmond, NSW | C37: 2019-01-01 | D37: 2019-12-31 | E37: 103 | F37: 51.5 | G37: 2019-06-01
A38: AUSTRALIA | B38: Sydney | C38: 2019-01-01 | D38: 2019-12-31 | E38: 142 | F38: 71 | G38: 2019-06-01
A39: AUSTRIA | B39: Graz | C39: 2019-01-01 | D39: 2019-12-31 | E39: 143 | F39: 71.5 | G39: 2018-12-01
A40: AUSTRIA | B40: Innsbruck | C40: 2019-01-01 | D40: 2019-12-31 | E40: 126 | F40: 63 | G40: 2018-12-01
A41: AUSTRIA | B41: Linz | C41: 2019-01-01 | D41: 2019-12-31 | E41: 147 | F41: 73.5 | G41: 2018-12-01
A42: AUSTRIA | B42: Other | C42: 2019-01-01 | D42: 2019-12-31 | E42: 126 | F42: 63 | G42: 2018-12-01
A43: AUSTRIA | B43: Salzburg | C43: 2019-01-01 | D43: 2019-12-31 | E43: 148 | F43: 74 | G43: 2018-12-01
A44: AUSTRIA | B44: Vienna | C44: 2019-01-01 | D44: 2019-12-31 | E44: 122 | F44: 61 | G44: 2018-12-01
A45: AZERBAIJAN | B45: Baku | C45: 2019-01-01 | D45: 2019-12-31 | E45: 115 | F45: 57.5 | G45: 2014-09-01
A46: AZERBAIJAN | B46: Ganja | C46: 2019-01-01 | D46: 2019-12-31 | E46: 90 | F46: 45 | G46: 2014-09-01
A47: AZERBAIJAN | B47: Other | C47: 2019-01-01 | D47: 2019-12-31 | E47: 81 | F47: 40.5 | G47: 2014-09-01
A48: AZERBAIJAN | B48: Qabala | C48: 2019-01-01 | D48: 2019-12-31 | E48: 84 | F48: 42 | G48: 2014-09-01
A49: Bahamas, The | B49: Andros Island | C49: 2019-01-01 | D49: 2019-12-31 | E49: 107 | F49: 53.5 | G49: 2015-08-01
A50: Bahamas, The | B50: Eleuthera Island | C50: 2019-04-17 | D50: 2019-11-14 | E50: 143 | F50: 71.5 | G50: 2015-09-01
A51: Bahamas, The | B51: Eleuthera Island | C51: 2019-11-15 | D51: 2019-04-16 | E51: 150 | F51: 75 | G51: 2015-09-01
A52: Bahamas, The | B52: Grand Bahama Island | C52: 2019-01-01 | D52: 2019-12-31 | E52: 126 | F52: 63 | G52: 2015-05-01
A53: Bahamas, The | B53: Nassau | C53: 2019-01-01 | D53: 2019-12-31 | E53: 159 | F53: 79.5 | G53: 2015-03-01
A54: Bahamas, The | B54: Other | C54: 2019-01-01 | D54: 2019-12-31 | E54: 132 | F54: 66 | G54: 2017-07-01
A55: BAHRAIN | B55: Bahrain | C55: 2019-01-01 | D55: 2019-12-31 | E55: 122 | F55: 61 | G55: 2016-08-01
A56: BAHRAIN | B56: MANAMA | C56: 2019-01-01 | D56: 2019-12-31 | E56: 122 | F56: 61 | G56: 2016-08-01
A57: BANGLADESH | B57: Chittagong | C57: 2019-01-01 | D57: 2019-12-31 | E57: 71 | F57: 35.5 | G57: 2013-07-01
A58: BANGLADESH | B58: Dhaka | C58: 2019-01-01 | D58: 2019-12-31 | E58: 90 | F58: 45 | G58: 2013-01-01
A59: BANGLADESH | B59: Other | C59: 2019-01-01 | D59: 2019-12-31 | E59: 71 | F59: 35.5 | G59: 2013-06-01
A60: BANGLADESH | B60: Sylhet | C60: 2019-01-01 | D60: 2019-12-31 | E60: 69 | F60: 34.5 | G60: 2013-06-01
A61: BARBADOS | B61: Barbados | C61: 2019-05-01 | D61: 2019-11-14 | E61: 137 | F61: 68.5 | G61: 2019-07-01
A62: BARBADOS | B62: Barbados | C62: 2019-11-15 | D62: 2019-04-30 | E62: 147 | F62: 73.5 | G62: 2019-07-01
A63: BELARUS | B63: Minsk | C63: 2019-01-01 | D63: 2019-12-31 | E63: 84 | F63: 42 | G63: 2017-01-01
A64: BELARUS | B64: Other | C64: 2019-01-01 | D64: 2019-12-31 | E64: 84 | F64: 42 | G64: 2017-01-01
A65: BELGIUM | B65: Antwerp | C65: 2019-01-01 | D65: 2019-12-31 | E65: 105 | F65: 52.5 | G65: 2018-12-01
A66: BELGIUM | B66: Brugge | C66: 2019-01-01 | D66: 2019-12-31 | E66: 91 | F66: 45.5 | G66: 2018-12-01
A67: BELGIUM | B67: Brussels | C67: 2019-01-01 | D67: 2019-12-31 | E67: 136 | F67: =E67*0.5 -> 68 | G67: 2018-12-01
A68: BELGIUM | B68: Diegem | C68: 2019-01-01 | D68: 2019-12-31 | E68: 136 | F68: 68 | G68: 2018-12-01
A69: BELGIUM | B69: Kleine Brogel | C69: 2019-01-01 | D69: 2019-12-31 | E69: 80 | F69: 40 | G69: 2018-12-01
A70: BELGIUM | B70: Liege | C70: 2019-01-01 | D70: 2019-12-31 | E70: 75 | F70: 37.5 | G70: 2018-12-01
A71: BELGIUM | B71: Other | C71: 2019-01-01 | D71: 2019-12-31 | E71: 71 | F71: 35.5 | G71: 2018-12-01
A72: BELGIUM | B72: SHAPE/Chievres | C72: 2019-01-01 | D72: 2019-12-31 | E72: 80 | F72: 40 | G72: 2018-12-01
A73: BELGIUM | B73: Zaventem | C73: 2019-01-01 | D73: 2019-12-31 | E73: 136 | F73: 68 | G73: 2018-12-01
A74: BELIZE | B74: Belize City | C74: 2019-01-01 | D74: 2019-12-31 | E74: 91 | F74: 45.5 | G74: 2015-12-01
A75: BELIZE | B75: Belmopan | C75: 2019-01-01 | D75: 2019-12-31 | E75: 93 | F75: 46.5 | G75: 2015-12-01
A76: BELIZE | B76: Caye Caulker | C76: 2019-01-01 | D76: 2019-12-31 | E76: 99 | F76: 49.5 | G76: 2016-01-01
A77: BELIZE | B77: Other | C77: 2019-01-01 | D77: 2019-12-31 | E77: 91 | F77: 45.5 | G77: 2015-12-01
A78: BELIZE | B78: San Pedro | C78: 2019-01-01 | D78: 2019-12-31 | E78: 99 | F78: 49.5 | G78: 2015-12-01
A79: BENIN | B79: Cotonou | C79: 2019-01-01 | D79: 2019-12-31 | E79: 86 | F79: 43 | G79: 2018-06-01
A80: BENIN | B80: Other | C80: 2019-01-01 | D80: 2019-12-31 | E80: 67 | F80: 33.5 | G80: 2008-05-01
A81: BERMUDA | B81: Bermuda | C81: 2019-04-01 | D81: 2019-11-30 | E81: 191 | F81: 95.5 | G81: 2017-04-01
A82: BERMUDA | B82: Bermuda | C82: 2019-12-01 | D82: 2019-03-31 | E82: 183 | F82: 91.5 | G82: 2017-04-01
A83: BHUTAN | B83: Bhutan | C83: 2019-01-01 | D83: 2019-12-31 | E83: 112 | F83: 56 | G83: 2010-12-01
A84: BOLIVIA | B84: Cochabamba | C84: 2019-01-01 | D84: 2019-12-31 | E84: 49 | F84: 24.5 | G84: 2012-09-01
A85: BOLIVIA | B85: La Paz | C85: 2019-01-01 | D85: 2019-12-31 | E85: 85 | F85: 42.5 | G85: 2016-04-01
A86: BOLIVIA | B86: Other | C86: 2019-01-01 | D86: 2019-12-31 | E86: 53 | F86: 26.5 | G86: 2016-05-01
A87: BOLIVIA | B87: Potosi | C87: 2019-01-01 | D87: 2019-12-31 | E87: 60 | F87: 30 | G87: 2016-04-01
A88: BOLIVIA | B88: Santa Cruz | C88: 2019-01-01 | D88: 2019-12-31 | E88: 82 | F88: 41 | G88: 2015-10-01
A89: BOLIVIA | B89: Tarija | C89: 2019-01-01 | D89: 2019-12-31 | E89: 60 | F89: 30 | G89: 2017-09-01
A90: Bosnia and Herzegovina | B90: Other | C90: 2019-01-01 | D90: 2019-12-31 | E90: 70 | F90: 35 | G90: 2018-11-01
A91: Bosnia and Herzegovina | B91: Sarajevo | C91: 2019-01-01 | D91: 2019-12-31 | E91: 70 | F91: 35 | G91: 2018-11-01
A92: BOTSWANA | B92: Francistown | C92: 2019-01-01 | D92: 2019-12-31 | E92: 75 | F92: 37.5 | G92: 2018-10-01
A93: BOTSWANA | B93: Gaborone | C93: 2019-01-01 | D93: 2019-12-31 | E93: 82 | F93: 41 | G93: 2018-10-01
A94: BOTSWANA | B94: Kasane | C94: 2019-01-01 | D94: 2019-12-31 | E94: 85 | F94: 42.5 | G94: 2018-10-01
A95: BOTSWANA | B95: Maun | C95: 2019-01-01 | D95: 2019-12-31 | E95: 74 | F95: 37 | G95: 2018-10-01
A96: BOTSWANA | B96: Other | C96: 2019-01-01 | D96: 2019-12-31 | E96: 74 | F96: 37 | G96: 2018-10-01
A97: BOTSWANA | B97: Selebi Phikwe | C97: 2019-01-01 | D97: 2019-12-31 | E97: 74 | F97: 37 | G97: 2018-10-01
A98: BOTSWANA | B98: Serowe | C98: 2019-01-01 | D98: 2019-12-31 | E98: 72 | F98: 36 | G98: 2018-10-01
A99: BRAZIL | B99: Belem | C99: 2019-01-01 | D99: 2019-12-31 | E99: 66 | F99: 33 | G99: 2019-08-01
A100: BRAZIL | B100: Belo Horizonte | C100: 2019-01-01 | D100: 2019-12-31 | E100: 85 | F100: 42.5 | G100: 2019-08-01
A101: BRAZIL | B101: Brasilia | C101: 2019-01-01 | D101: 2019-12-31 | E101: 120 | F101: 60 | G101: 2018-06-01
A102: BRAZIL | B102: Fortaleza | C102: 2019-01-01 | D102: 2019-12-31 | E102: 114 | F102: 57 | G102: 2013-06-01
A103: BRAZIL | B103: Foz do Iguacu | C103: 2019-01-01 | D103: 2019-12-31 | E103: 104 | F103: 52 | G103: 2019-08-01
A104: BRAZIL | B104: Goiania | C104: 2019-01-01 | D104: 2019-12-31 | E104: 131 | F104: 65.5 | G104: 2012-05-01
A105: BRAZIL | B105: Manaus | C105: 2019-01-01 | D105: 2019-12-31 | E105: 95 | F105: 47.5 | G105: 2018-06-01
A106: BRAZIL | B106: Natal | C106: 2019-01-01 | D106: 2019-12-31 | E106: 95 | F106: 47.5 | G106: 2010-11-01
A107: BRAZIL | B107: Other | C107: 2019-01-01 | D107: 2019-12-31 | E107: 130 | F107: 65 | G107: 2012-05-01
A108: BRAZIL | B108: Porto Alegre | C108: 2019-01-01 | D108: 2019-12-31 | E108: 112 | F108: 56 | G108: 2019-08-01
A109: BRAZIL | B109: Porto Velho | C109: 2019-01-01 | D109: 2019-12-31 | E109: 51 | F109: 25.5 | G109: 2019-08-01
A110: BRAZIL | B110: Recife, Pernambuco | C110: 2019-01-01 | D110: 2019-12-31 | E110: 93 | F110: 46.5 | G110: 2010-11-01
A111: BRAZIL | B111: Rio de Janeiro | C111: 2019-01-01 | D111: 2019-12-31 | E111: 121 | F111: 60.5 | G111: 2018-11-01
A112: BRAZIL | B112: Salvador da Bahia | C112: 2019-01-01 | D112: 2019-12-31 | E112: 121 | F112: 60.5 | G112: 2013-12-01
A113: BRAZIL | B113: Sao Paulo | C113: 2019-01-01 | D113: 2019-12-31 | E113: 123 | F113: 61.5 | G113: 2019-06-01
A114: BRUNEI | B114: Bandar Seri Begawan | C114: 2019-01-01 | D114: 2019-12-31 | E114: 97 | F114: 48.5 | G114: 2010-05-01
A115: BRUNEI | B115: Jerudong | C115: 2019-01-01 | D115: 2019-12-31 | E115: 106 | F115: 53 | G115: 2014-03-01
A116: BRUNEI | B116: Other | C116: 2019-01-01 | D116: 2019-12-31 | E116: 48 | F116: 24 | G116: 2000-03-01
A117: BULGARIA | B117: Bourgas | C117: 2019-01-01 | D117: 2019-12-31 | E117: 74 | F117: 37 | G117: 2019-03-01
A118: BULGARIA | B118: Other | C118: 2019-01-01 | D118: 2019-12-31 | E118: 69 | F118: 34.5 | G118: 2008-02-01
A119: BULGARIA | B119: Plovdiv | C119: 2019-01-01 | D119: 2019-12-31 | E119: 60 | F119: 30 | G119: 2008-05-01
A120: BULGARIA | B120: Sofia | C120: 2019-01-01 | D120: 2019-12-31 | E120: 103 | F120: 51.5 | G120: 2018-04-01
A121: BULGARIA | B121: Varna | C121: 2019-01-01 | D121: 2019-12-31 | E121: 58 | F121: 29 | G121: 2005-09-01
A122: BURKINA FASO | B122: Bobo Dioulasso | C122: 2019-01-01 | D122: 2019-12-31 | E122: 63 | F122: 31.5 | G122: 2018-06-01
A123: BURKINA FASO | B123: Other | C123: 2019-01-01 | D123: 2019-12-31 | E123: 63 | F123: 31.5 | G123: 2018-06-01
A124: BURKINA FASO | B124: Ouagadougou | C124: 2019-01-01 | D124: 2019-12-31 | E124: 108 | F124: 54 | G124: 2018-06-01
A125: BURMA | B125: Naypyitaw | C125: 2019-01-01 | D125: 2019-12-31 | E125: 106 | F125: 53 | G125: 2017-03-01
A126: BURMA | B126: Other | C126: 2019-01-01 | D126: 2019-12-31 | E126: 93 | F126: 46.5 | G126: 2017-03-01
A127: BURMA | B127: Rangoon | C127: 2019-01-01 | D127: 2019-12-31 | E127: 107 | F127: 53.5 | G127: 2017-03-01
A128: BURUNDI | B128: Bujumbura | C128: 2019-01-01 | D128: 2019-12-31 | E128: 67 | F128: 33.5 | G128: 2011-07-01
A129: BURUNDI | B129: Other | C129: 2019-01-01 | D129: 2019-12-31 | E129: 67 | F129: 33.5 | G129: 2011-07-01
A130: CABO VERDE | B130: Boa Vista Island | C130: 2019-01-01 | D130: 2019-12-31 | E130: 48 | F130: 24 | G130: 2019-04-01
A131: CABO VERDE | B131: Fogo | C131: 2019-01-01 | D131: 2019-12-31 | E131: 63 | F131: =E131*0.5 -> 31.5 | G131: 2019-04-01
A132: CABO VERDE | B132: Other | C132: 2019-01-01 | D132: 2019-12-31 | E132: 45 | F132: 22.5 | G132: 2019-04-01
A133: CABO VERDE | B133: Praia | C133: 2019-01-01 | D133: 2019-12-31 | E133: 94 | F133: 47 | G133: 2019-04-01
A134: CABO VERDE | B134: Sal Island | C134: 2019-01-01 | D134: 2019-12-31 | E134: 93 | F134: 46.5 | G134: 2019-04-01
A135: CABO VERDE | B135: Sao Tiago Island | C135: 2019-01-01 | D135: 2019-12-31 | E135: 44 | F135: 22 | G135: 2019-04-01
A136: CABO VERDE | B136: Sao Vicente Island | C136: 2019-01-01 | D136: 2019-12-31 | E136: 79 | F136: 39.5 | G136: 2019-04-01
A137: CAMBODIA | B137: Other | C137: 2019-01-01 | D137: 2019-12-31 | E137: 57 | F137: 28.5 | G137: 2015-04-01
A138: CAMBODIA | B138: Phnom Penh | C138: 2019-01-01 | D138: 2019-12-31 | E138: 85 | F138: 42.5 | G138: 2014-05-01
A139: CAMBODIA | B139: Siem Reap | C139: 2019-04-01 | D139: 2019-09-30 | E139: 79 | F139: 39.5 | G139: 2013-12-01
A140: CAMBODIA | B140: Siem Reap | C140: 2019-10-01 | D140: 2019-03-31 | E140: 81 | F140: 40.5 | G140: 2013-12-01
A141: CAMBODIA | B141: Sihanoukville | C141: 2019-05-01 | D141: 2019-08-31 | E141: 73 | F141: 36.5 | G141: 2016-07-01
A142: CAMBODIA | B142: Sihanoukville | C142: 2019-09-01 | D142: 2019-04-30 | E142: 76 | F142: 38 | G142: 2016-07-01
A143: CAMEROON | B143: Douala | C143: 2019-01-01 | D143: 2019-12-31 | E143: 122 | F143: 61 | G143: 2019-08-01
A144: CAMEROON | B144: Limbe | C144: 2019-01-01 | D144: 2019-12-31 | E144: 69 | F144: 34.5 | G144: 2019-08-01
A145: CAMEROON | B145: Other | C145: 2019-01-01 | D145: 2019-12-31 | E145: 58 | F145: 29 | G145: 2019-08-01
A146: CAMEROON | B146: Yaounde | C146: 2019-01-01 | D146: 2019-12-31 | E146: 105 | F146: 52.5 | G146: 2019-08-01
A147: CANADA | B147: Banff | C147: 2019-01-01 | D147: 2019-12-31 | E147: 84 | F147: 42 | G147: 2018-08-01
A148: CANADA | B148: Calgary | C148: 2019-01-01 | D148: 2019-12-31 | E148: 121 | F148: 60.5 | G148: 2018-08-01
A149: CANADA | B149: Dartmouth | C149: 2019-01-01 | D149: 2019-12-31 | E149: 136 | F149: 68 | G149: 2018-08-01
A150: CANADA | B150: Edmonton | C150: 2019-01-01 | D150: 2019-12-31 | E150: 125 | F150: 62.5 | G150: 2019-01-01
A151: CANADA | B151: Fort McMurray, Alberta | C151: 2019-01-01 | D151: 2019-12-31 | E151: 92 | F151: 46 | G151: 2008-01-01
A152: CANADA | B152: Fredericton | C152: 2019-01-01 | D152: 2019-12-31 | E152: 119 | F152: 59.5 | G152: 2018-08-01
A153: CANADA | B153: Gander, Newfoundland | C153: 2019-01-01 | D153: 2019-12-31 | E153: 111 | F153: 55.5 | G153: 2018-08-01
A154: CANADA | B154: Goose Bay | C154: 2019-01-01 | D154: 2019-12-31 | E154: 110 | F154: 55 | G154: 2018-08-01
A155: CANADA | B155: Halifax | C155: 2019-01-01 | D155: 2019-12-31 | E155: 136 | F155: 68 | G155: 2018-08-01
A156: CANADA | B156: Kelowna | C156: 2019-01-01 | D156: 2019-12-31 | E156: 128 | F156: 64 | G156: 2018-08-01
A157: CANADA | B157: London, Ontario | C157: 2019-01-01 | D157: 2019-12-31 | E157: 94 | F157: 47 | G157: 2010-08-01
A158: CANADA | B158: Moncton | C158: 2019-01-01 | D158: 2019-12-31 | E158: 113 | F158: 56.5 | G158: 2018-08-01
A159: CANADA | B159: Montreal | C159: 2019-01-01 | D159: 2019-12-31 | E159: 110 | F159: 55 | G159: 2018-08-01
A160: CANADA | B160: Nanoose Bay | C160: 2019-01-01 | D160: 2019-12-31 | E160: 95 | F160: 47.5 | G160: 2018-08-01
A161: CANADA | B161: Other | C161: 2019-01-01 | D161: 2019-12-31 | E161: 107 | F161: 53.5 | G161: 2018-08-01
A162: CANADA | B162: Ottawa | C162: 2019-01-01 | D162: 2019-12-31 | E162: 112 | F162: 56 | G162: 2018-08-01
A163: CANADA | B163: Prince Edward Island | C163: 2019-01-01 | D163: 2019-12-31 | E163: 118 | F163: 59 | G163: 2018-08-01
A164: CANADA | B164: Quebec | C164: 2019-01-01 | D164: 2019-12-31 | E164: 128 | F164: 64 | G164: 2018-08-01
A165: CANADA | B165: Regina, Saskatchewan | C165: 2019-01-01 | D165: 2019-12-31 | E165: 91 | F165: 45.5 | G165: 2008-01-01
A166: CANADA | B166: Richmond | C166: 2019-01-01 | D166: 2019-12-31 | E166: 122 | F166: 61 | G166: 2018-08-01
A167: CANADA | B167: Saskatoon, Saskatchewan | C167: 2019-01-01 | D167: 2019-12-31 | E167: 90 | F167: 45 | G167: 2008-01-01
A168: CANADA | B168: Sidney | C168: 2019-01-01 | D168: 2019-12-31 | E168: 102 | F168: 51 | G168: 2018-08-01
A169: CANADA | B169: St. John's, Newfoundland | C169: 2019-01-01 | D169: 2019-12-31 | E169: 136 | F169: 68 | G169: 2018-08-01
A170: CANADA | B170: Toronto | C170: 2019-01-01 | D170: 2019-12-31 | E170: 123 | F170: 61.5 | G170: 2019-04-01
A171: CANADA | B171: Vancouver | C171: 2019-03-16 | D171: 2019-11-30 | E171: 159 | F171: 79.5 | G171: 2019-08-01
A172: CANADA | B172: Vancouver | C172: 2019-12-01 | D172: 2019-03-15 | E172: 140 | F172: 70 | G172: 2019-08-01
A173: CANADA | B173: Victoria | C173: 2019-05-15 | D173: 2019-10-01 | E173: 125 | F173: 62.5 | G173: 2018-08-01
A174: CANADA | B174: Victoria | C174: 2019-10-02 | D174: 2019-05-14 | E174: 119 | F174: 59.5 | G174: 2018-08-01
A175: CANADA | B175: Whistler, BC | C175: 2019-01-01 | D175: 2019-12-31 | E175: 118 | F175: 59 | G175: 2019-01-01
A176: CANADA | B176: Whitehorse, Yukon | C176: 2019-01-01 | D176: 2019-12-31 | E176: 97 | F176: 48.5 | G176: 2018-08-01
A177: CANADA | B177: Winnipeg | C177: 2019-01-01 | D177: 2019-12-31 | E177: 141 | F177: 70.5 | G177: 2018-08-01
A178: CANADA | B178: Yellowknife | C178: 2019-01-01 | D178: 2019-12-31 | E178: 97 | F178: 48.5 | G178: 2018-08-01
A179: CAYMAN ISLANDS | B179: Cayman Islands | C179: 2019-07-17 | D179: 2019-12-14 | E179: 119 | F179: 59.5 | G179: 2015-12-01
A180: CAYMAN ISLANDS | B180: Cayman Islands | C180: 2019-12-15 | D180: 2019-07-16 | E180: 147 | F180: 73.5 | G180: 2015-12-01
A181: CENTRAL AFRICAN REPUBLIC | B181: Bangui | C181: 2019-01-01 | D181: 2019-12-31 | E181: 111 | F181: 55.5 | G181: 2015-03-01
A182: CENTRAL AFRICAN REPUBLIC | B182: Other | C182: 2019-01-01 | D182: 2019-12-31 | E182: 111 | F182: 55.5 | G182: 2015-03-01
A183: CHAD | B183: Ndjamena | C183: 2019-01-01 | D183: 2019-12-31 | E183: 109 | F183: 54.5 | G183: 2019-08-01
A184: CHAD | B184: Other | C184: 2019-01-01 | D184: 2019-12-31 | E184: 100 | F184: 50 | G184: 2014-10-01
A185: CHAGOS ARCHIPELAGO | B185: Diego Garcia | C185: 2019-01-01 | D185: 2019-12-31 | E185: 80 | F185: 40 | G185: 2018-11-01
A186: CHILE | B186: Other | C186: 2019-01-01 | D186: 2019-12-31 | E186: 89 | F186: 44.5 | G186: 2013-07-01
A187: CHILE | B187: Santiago | C187: 2019-01-01 | D187: 2019-12-31 | E187: 104 | F187: 52 | G187: 2018-08-01
A188: CHINA | B188: Beijing | C188: 2019-01-01 | D188: 2019-12-31 | E188: 110 | F188: 55 | G188: 2019-01-01
A189: CHINA | B189: Changchun | C189: 2019-01-01 | D189: 2019-12-31 | E189: 100 | F189: 50 | G189: 2013-04-01
A190: CHINA | B190: Chengdu | C190: 2019-01-01 | D190: 2019-12-31 | E190: 126 | F190: 63 | G190: 2018-11-01
A191: CHINA | B191: Chongqing | C191: 2019-01-01 | D191: 2019-12-31 | E191: 126 | F191: 63 | G191: 2018-01-01
A192: CHINA | B192: Dalian | C192: 2019-01-01 | D192: 2019-12-31 | E192: 108 | F192: 54 | G192: 2013-04-01
A193: CHINA | B193: Fuzhou | C193: 2019-01-01 | D193: 2019-12-31 | E193: 122 | F193: 61 | G193: 2014-01-01
A194: CHINA | B194: Guangzhou | C194: 2019-01-01 | D194: 2019-12-31 | E194: 169 | F194: 84.5 | G194: 2018-03-01
A195: CHINA | B195: Guilin | C195: 2019-01-01 | D195: 2019-12-31 | E195: 100 | F195: =E195*0.5 -> 50 | G195: 2012-08-01
A196: CHINA | B196: Haikou | C196: 2019-01-01 | D196: 2019-12-31 | E196: 109 | F196: 54.5 | G196: 2018-11-01
A197: CHINA | B197: Hangzhou | C197: 2019-01-01 | D197: 2019-12-31 | E197: 124 | F197: 62 | G197: 2015-08-01
A198: CHINA | B198: Harbin | C198: 2019-01-01 | D198: 2019-12-31 | E198: 101 | F198: 50.5 | G198: 2013-04-01
A199: CHINA | B199: Jinan | C199: 2019-01-01 | D199: 2019-12-31 | E199: 85 | F199: 42.5 | G199: 2018-11-01
A200: CHINA | B200: Lhasa | C200: 2019-01-01 | D200: 2019-12-31 | E200: 111 | F200: 55.5 | G200: 2018-01-01
... 925 more rows

Sheet Exchange Factor List
A1: Currency | B1: Exchange Factor (OANDA ASK) | C1: Wells Fargo Rate (+5%)
A2: AUD Australian Dollar | B2: 0.67952 | C2: =B2*1.05 -> 0.713496
A3: BRL Brazilian Real | B3: 0.2571 | C3: =B3*1.05 -> 0.269955
A4: BZD Belize Dollar | B4: 0.48547 | C4: 0.5097435
A5: CAD Canadian Dollar | B5: 0.75708 | C5: 0.794934
A6: CHF Swiss Franc | B6: 1.01766 | C6: 1.068543
A7: CLP Chilean Peso | B7: 0.0014 | C7: 0.00147
A8: CNY Chinese Yuan | B8: 0.14407 | C8: 0.1512735
A9: CRC Costa Rican Colon | B9: 0.00171 | C9: 0.0017955
A10: CZK Czech Koruna | B10: 0.04311 | C10: 0.0452655
A11: DOP Dominican Peso | B11: 0.01939 | C11: 0.0203595
A12: ECS Ecuador Sucre | B12: 4e-05 | C12: 4.2e-05
A13: EUR Euro | B13: 1.11048 | C13: 1.166004
A14: GBP British Pound | B14: 1.21542 | C14: 1.276191
A15: GHS Ghanaian Cedi | B15: 0.18435 | C15: 0.1935675
A16: INR Indian Rupee | B16: 0.01433 | C16: 0.0150465
A17: ISK Icelandic Krona | B17: 0.00813 | C17: 0.0085365
A18: JPY Japanese Yen | B18: 0.00938 | C18: 0.009849
A19: KHR Cambodian Riel | B19: 0.00024 | C19: 0.000252
A20: KRW Korean Won | B20: 0.0009 | C20: 0.000945
A21: MAD Moroccan Dirham | B21: 0.10353 | C21: 0.1087065
A22: MXN Mexican Peso | B22: 0.05175 | C22: 0.0543375
A23: NIO Nicaraguan Cordoba | B23: 0.02979 | C23: 0.0312795
A24: NOK Norway Kroner | B24: 0.11201 | C24: 0.1176105
A25: NZD New Zealand Dollar | B25: 0.6533 | C25: 0.685965
A26: PAB Panamanian Balboa | B26: 1 | C26: 1.05
A27: PEN Peruvian Nuevo Sol | B27: 0.29784 | C27: 0.312732
A28: SEK Swedish Krona | B28: 0.1037 | C28: 0.108885
A29: USD US Dollars | B29: 1 | C29: 1.05
A30: ZAR South African Rand | B30: 0.06748 | C30: 0.070854
